[Event "Arona Festival 2024"]
[Site "Arona Tenerife"]
[Date "2024.06.28"]
[Round "8.7"]
[White "Sankalp Gupta"]
[Black "Paichadze, Luka"]
[Result "1/2-1/2"]
[ECO "B12"]
[WhiteElo "2552"]
[BlackElo "2504"]
[Annotator "TA"]
[PlyCount "95"]
[EventDate "2024.06.20"]
[EventType "swiss"]
[EventCountry "ESP"]
[SourceTitle "playchess.com"]
[Source "ChessBase"]
[SourceQuality "1"]
[TimeControl "5400+30"]

{[%evp 9,95,8,38,33,13,17,61,64,100,89,111,117,119,120,118,61,121,117,129,114,127,126,121,117,102,16,96,70,59,47,56,33,52,43,46,45,58,23,25,32,28,27,28,28,28,21,21,21,21,25,35,29,26,-10,24,20,24,24,24,24,79,24,24,24,24,24,67,24,24,24,67,34,37,0,68,28,68,24,68,68,68,68,68,41,68,68,68,0]} 1. e4 {[%emt 0:00:09]} c6 {[%emt 0:00:04]} 2. d4 {[%emt 0:00:04]} d5 {[%emt 0:00:04]} 3. e5 {[%emt 0:00:04]} c5 {[%emt 0:02:13]} 4. Nf3 {[%emt 0:00:31]} Bg4 {[%emt 0:01:14]} 5. dxc5 {[%emt 0:00:05]} e6 {[%emt 0:00:37]} 6. Bb5+ {[%emt 0:03:37]} Nd7 {[%emt 0:01:27] Black is weak on the dark squares} 7. b4 {[%emt 0:00:04]} Ne7 {[%emt 0:01:33]} 8. Bb2 {[%emt 0:00:37] White is more active.} a5 {[%emt 0:10:56]} 9. a3 {[%emt 0:01:50][%cal Ba2a3,Ba3b4][%mdl 32]} axb4 {[%emt 0:04:11]} 10. axb4 {[%emt 0:00:45] And now Rxa8 would win.} Rxa1 {[%emt 0:00:13]} 11. Bxa1 {[%emt 0:00:03]} Nc6 {[%emt 0:00:12]} 12. Bc3 {[%emt 0:25:51]} (12. Bxc6 $16 bxc6 13. O-O) 12... g5 {[%emt 0:11:15]} (12... Bxf3 $14 13. Qxf3 Qc7) 13. Nbd2 {[%emt 0:08:30]} Bg7 {[%emt 0:00:22]} 14. Qa1 {[%emt 0:01:24]} O-O {[%emt 0:09:52]} 15. O-O {[%emt 0:03:26]} Bh5 {[%emt 0:07:32]} 16. Bxc6 bxc6 {[%emt 0:00:07]} 17. Qa4 {[%emt 0:07:14]} (17. Re1 $16) 17... Qa8 {[%emt 0:06:49]} (17... g4 $1 $11 18. Nd4 Nxe5) 18. Qxa8 {[%emt 0:06:48]} Rxa8 {[%emt 0:00:06]} 19. h3 $1 {[%emt 0:00:06]} (19. Nxg5 Ra2 20. Rc1 Bxe5 21. Bxe5 Nxe5 $17) 19... Bg6 {[%emt 0:05:08]} 20. Nxg5 {[%emt 0:04:34]} Nxe5 {[%emt 0:03:50]} 21. f4 {[%emt 0:00:02]} Nc4 {[%emt 0:07:08]} 22. Bxg7 {[%emt 0:00:30]} Nxd2 {[%emt 0:01:07]} 23. Ra1 {[%emt 0:00:02]} Rxa1+ 24. Bxa1 $11 {[%emt 0:00:03][%cal Ob4b5][%mdl 4096] Endgame. KBN-KBN} Kf8 {[%emt 0:03:08][%cal Oh7h6]} 25. Kf2 {[%emt 0:04:17]} Bxc2 {[%emt 0:09:00]} 26. Ke2 {[%emt 0:00:34]} Nc4 {[%emt 0:00:32]} 27. Bf6 {[%emt 0:00:21]} Ke8 {[%emt 0:03:23]} 28. g4 {[%emt 0:00:06]} Bg6 {[%emt 0:04:11]} 29. Nf3 {[%emt 0:00:24]} Be4 {[%emt 0:00:49]} 30. Nd4 {[%emt 0:07:33]} Kd7 {[%emt 0:00:18]} 31. Kf2 {[%emt 0:02:25]} Na3 {[%emt 0:00:39]} 32. Kg3 {[%emt 0:00:18]} Nc2 {[%emt 0:01:36]} 33. Nxc2 {[%emt 0:00:07]} Bxc2 {[%emt 0:00:01] KB-KB} 34. Kh4 {[%emt 0:00:20]} Bd3 {[%emt 0:01:30]} (34... Ke8 $1 $11) 35. Kg5 {[%emt 0:00:14]} (35. Kh5 $16) 35... Ke8 $1 {[%emt 0:00:09]} 36. Be5 {[%emt 0:09:20]} Kf8 {[%emt 0:00:51]} 37. Kf6 {[%emt 0:00:04]} Kg8 {[%emt 0:00:41]} 38. g5 {[%emt 0:05:51]} Kf8 {[%emt 0:00:15]} 39. h4 {[%emt 0:00:08][%cal Bh3h4,Bh4h5][%mdl 32]} Kg8 {[%emt 0:00:05]} 40. Bd6 {[%emt 0:03:53]} Bc4 {[%emt 0:00:15]} 41. Be5 {[%emt 0:01:24]} Bd3 {[%emt 0:00:07]} 42. h5 {[%emt 0:00:03]} Kf8 {[%emt 0:00:29]} 43. Bd4 {[%emt 0:00:28]} Kg8 {[%emt 0:00:10]} 44. Ke7 {[%emt 0:00:06] White is slightly better.} Bb5 {[%emt 0:00:51]} 45. Kd7 {[%emt 0:00:27]} Ba4 {[%emt 0:00:14]} 46. Kd6 {[%emt 0:00:47]} Bb5 {[%emt 0:00:15]} 47. Ke7 {[%emt 0:01:58]} Bd3 {[%emt 0:00:10]} 48. Kd6 {[%emt 0:07:03] Weighted Error Value: White=0.16 (very precise) /Black=0.15 (very precise) .  Mistake:       	White=4     	Black=3      Inaccurate:     	White=7     	Black=7      OK:         	White=11    	Black=17     Best:        	White=2     	Black=1      Strong:       	White=1     	Black=1} ({White should play} 48. Bf6 $14) 1/2-1/2

[Event "Arona Festival 2024"]
[Site "Arona Tenerife"]
[Date "2024.06.28"]
[Round "8.8"]
[White "Stremavicius, Titas"]
[Black "Prraneeth Vuppala"]
[Result "1-0"]
[ECO "D37"]
[WhiteElo "2538"]
[BlackElo "2436"]
[Annotator "TA"]
[PlyCount "127"]
[EventDate "2024.06.20"]
[EventType "swiss"]
[EventCountry "ESP"]
[SourceTitle "playchess.com"]
[Source "ChessBase"]
[SourceQuality "1"]
[TimeControl "5400+30"]

{[%evp 31,127,45,46,45,45,52,48,30,28,31,33,26,30,28,27,25,51,53,124,118,112,64,64,58,55,55,61,50,52,58,62,50,48,47,56,58,75,75,80,80,80,49,45,45,52,55,45,54,91,83,90,82,91,26,31,24,25,24,21,0,7,7,8,3,206,253,246,243,244,236,241,244,244,219,237,202,475,451,591,29,32,8,29976,29977,29977,29978,29990,29988,29988,29989,29990,29988,29991,29985,29985,29986,29986,29987]} 1. d4 {[%emt 0:00:03]} d5 {[%emt 0:04:18]} 2. c4 {[%emt 0:00:08]} e6 {[%emt 0:00:17]} 3. Nc3 {[%emt 0:00:07]} h6 {[%emt 0:00:57]} 4. Nf3 {[%emt 0:00:36]} Nf6 {[%emt 0:00:14]} 5. g3 {[%emt 0:00:27]} Bd6 {[%emt 0:00:57]} 6. Bg2 {[%emt 0:01:48] D37: Queen's Gambit Declined: 5 Bf4.} O-O {[%emt 0:00:09]} 7. O-O {[%emt 0:00:08]} Nc6 {[%emt 0:00:57]} 8. b3 {[%emt 0:04:16]} Re8 {[%emt 0:04:41]} 9. Bb2 {[%emt 0:04:33]} dxc4 {[%emt 0:03:25]} 10. bxc4 {[%emt 0:00:04]} e5 {[%emt 0:00:11]} 11. Nd5 {[%emt 0:37:07]} exd4 {[%emt 0:24:49]} 12. Nxd4 {[%emt 0:00:38]} Nxd4 {[%emt 0:04:16]} 13. Bxd4 {[%emt 0:01:46]} Be5 $146 {[%emt 0:02:43]} ({Predecessor:} 13... Ng4 14. c5 Be5 15. Bxe5 Nxe5 16. Rb1 Rb8 17. Qa4 Bd7 18. Qf4 c6 19. Nc3 Qa5 {½-½ Ohanyan,E (2405)-Gavrilescu,D (2527) EU-ch 23rd Vrnjacka Banja 2023 (7)}) 14. e3 {[%emt 0:12:56]} c6 {[%emt 0:10:23]} 15. Bxe5 {[%emt 0:00:55]} Rxe5 {[%emt 0:00:05]} 16. Qd4 {[%emt 0:00:13]} Re8 {[%emt 0:03:07]} 17. Nxf6+ {[%emt 0:02:51]} Qxf6 {[%emt 0:00:04]} 18. Qxf6 {[%emt 0:00:22]} gxf6 {[%emt 0:00:03]} 19. Rab1 {[%emt 0:03:59]} Re7 {[%emt 0:03:45]} 20. Rfd1 {[%emt 0:00:35]} Be6 {[%emt 0:03:09]} 21. Rd4 {[%emt 0:00:07]} Kg7 {[%emt 0:01:48]} 22. a4 {[%emt 0:06:44]} c5 {[%emt 0:01:45]} 23. Rd6 {[%emt 0:04:18]} (23. Rxb7 $2 Rxb7 24. Bxb7 Rb8 $19) (23. Bxb7 $2 Rb8 $19 (23... Rxb7 $2 24. Rxb7 cxd4 25. exd4 $19) (23... Rxb7 $2 24. Rxb7 cxd4 25. exd4 $19)) 23... Rb8 {[%emt 0:09:23]} 24. Bd5 {[%emt 0:01:47]} Bxd5 {[%emt 0:01:05]} (24... Rd7 $14 25. Rxd7 Bxd7) 25. Rxd5 $16 {[%emt 0:00:04]} (25. cxd5 $6 c4 $11) 25... Rc8 {[%emt 0:01:05]} 26. Rd6 {[%emt 0:01:07]} (26. Kf1 $16) 26... Rcc7 $14 {[%emt 0:01:08]} 27. a5 {[%emt 0:05:43]} Re4 {[%emt 0:02:27]} 28. Rc1 {[%emt 0:00:08]} Re6 {[%emt 0:00:13]} 29. Rxe6 {[%emt 0:02:30]} fxe6 {[%emt 0:00:02]} 30. Rb1 {[%emt 0:00:10]} f5 {[%emt 0:02:31]} 31. Kg2 {[%emt 0:00:20]} Kf6 {[%emt 0:00:41]} 32. Kf3 {[%emt 0:00:07]} h5 {[%emt 0:04:29]} 33. h3 {[%emt 0:01:41]} Rd7 {[%emt 0:02:41]} 34. Rb5 {[%emt 0:00:05]} Rc7 {[%emt 0:00:03]} 35. Kf4 {[%emt 0:00:27]} a6 {[%emt 0:01:29]} 36. Rb6 {[%emt 0:01:33]} Rd7 {[%emt 0:01:12]} 37. g4 {[%emt 0:02:11]} hxg4 {[%emt 0:01:31]} 38. hxg4 {[%emt 0:00:02]} fxg4 {[%emt 0:00:04]} 39. Kxg4 {[%emt 0:00:06]} Rg7+ {[%emt 0:06:41]} 40. Kf4 {[%emt 0:01:07]} Rg2 {[%emt 0:01:01]} 41. Kf3 {[%emt 0:00:06]} (41. Rxb7 $6 Rxf2+ 42. Ke4 Rc2 $11) 41... Rg7 {[%emt 0:00:03]} 42. Ke4 {[%emt 0:00:21]} ({White should play} 42. e4 $1 $16) 42... Rg2 $1 $11 {[%emt 0:00:55]} 43. f4 {[%emt 0:00:56]} Rc2 {[%emt 0:00:21]} 44. Kd3 {[%emt 0:00:30]} Ra2 {[%emt 0:00:02]} 45. e4 {[%emt 0:00:56]} Ra3+ {[%emt 0:00:57]} 46. Ke2 {[%emt 0:01:12]} Rxa5 {[%emt 0:00:37]} 47. f5 {[%emt 0:00:20]} Ra4 $2 {[%emt 0:00:26]} (47... Ra2+ $11 {and Black is okay.} 48. Ke3 Kg5) 48. Rxe6+ $18 {[%emt 0:03:20]} Kg5 {[%emt 0:00:20]} 49. f6 $1 {[%emt 0:01:21]} Ra2+ {[%emt 0:00:50]} 50. Ke3 {[%emt 0:00:10]} Ra3+ {[%emt 0:00:09] [#]} 51. Kd2 $1 {[%emt 0:00:17]} Ra2+ {[%emt 0:00:38]} 52. Kd3 {[%emt 0:00:13]} Ra3+ {[%emt 0:00:03] [#]} 53. Kc2 $1 {[%emt 0:00:11]} b5 $2 {[%emt 0:01:06]} (53... Ra2+ 54. Kb1 Rf2) 54. e5 $18 {[%emt 0:00:39]} Rf3 {[%emt 0:00:12]} 55. cxb5 $2 {[%emt 0:02:36]} (55. Rxa6 Kf5 $11) (55. Re8 $18) 55... axb5 $11 {[%emt 0:00:05]} 56. Re8 {[%emt 0:00:41]} b4 $2 {[%emt 0:00:59][%mdl 8192]} (56... Kg6 $11) 57. Rg8+ {[%emt 0:00:41]} Kh6 {[%emt 0:00:14]} 58. e6 {[%emt 0:00:02]} c4 {[%emt 0:01:08]} 59. f7 {[%emt 0:00:09]} b3+ {[%emt 0:00:21]} 60. Kb2 {[%emt 0:00:14]} Rf2+ {[%emt 0:00:11]} 61. Kc3 {[%emt 0:01:26]} b2 {[%emt 0:00:34]} 62. Rg1 {[%emt 0:00:04]} ({Weaker is} 62. f8=R b1=Q 63. Rxf2 (63. Rh8+ Kg5 $11) 63... Qe1+ 64. Rd2 Qc1+ 65. Rc2 Qe1+ 66. Kxc4 Kh7 $11 (66... Qxe6+ 67. Kd4 $11)) 62... b1=Q {[%emt 0:00:52]} 63. Rxb1 {[%emt 0:00:02]} Kg7 {[%emt 0:00:04]} 64. Rb8 {[%emt 0:00:36]} 1-0

[Event "Arona Festival 2024"]
[Site "Arona Tenerife"]
[Date "2024.06.28"]
[Round "8.9"]
[White "Pantsulaia, Levan"]
[Black "Kochavi, Ori"]
[Result "1/2-1/2"]
[ECO "E17"]
[WhiteElo "2535"]
[BlackElo "2394"]
[Annotator "TA"]
[PlyCount "93"]
[EventDate "2024.06.20"]
[EventType "swiss"]
[EventCountry "ESP"]
[SourceTitle "playchess.com"]
[Source "ChessBase"]
[SourceQuality "1"]
[TimeControl "5400+30"]

{[%evp 19,93,8,14,8,12,11,8,11,34,22,21,14,26,8,10,0,0,0,0,0,0,0,0,0,0,0,8,8,3,0,0,-6,-7,0,0,-8,0,0,0,-4,-4,-23,-7,-15,12,-20,0,-12,-10,-8,-9,-10,-14,-17,0,0,0,0,0,0,0,0,0,-2,0,0,0,-8,-8,-8,0,0,0,-24,-8,-52]} 1. Nf3 {[%emt 0:00:37]} Nf6 {[%emt 0:00:14]} 2. g3 {[%emt 0:00:22]} b6 {[%emt 0:00:09]} 3. Bg2 {[%emt 0:00:53]} Bb7 {[%emt 0:00:04]} 4. O-O {[%emt 0:00:15]} e6 {[%emt 0:00:08]} 5. c4 {[%emt 0:07:36]} Be7 {[%emt 0:00:09]} 6. Nc3 {[%emt 0:01:10]} O-O {[%emt 0:00:15]} 7. Re1 {[%emt 0:00:25]} d5 {[%emt 0:05:46]} 8. cxd5 {[%emt 0:00:12]} exd5 {[%emt 0:00:04]} 9. d4 {[%emt 0:00:45]} Nbd7 {[%emt 0:00:02][%cal Bb8d7,Bd7f6,Bf6d5][%mdl 32]} 10. Bf4 {[%emt 0:03:00]} c5 {[%emt 0:00:11]} 11. Rc1 {[%emt 0:03:25]} Ne4 {[%emt 0:08:39]} 12. Nxe4 dxe4 {[%emt 0:00:05]} 13. Nd2 {[%emt 0:10:41]} Nf6 {[%emt 0:20:55]} 14. Nb3 {[%emt 0:08:52]} cxd4 {[%emt 0:11:32]} 15. Qxd4 {[%emt 0:00:41]} Rc8 {[%emt 0:06:56]} 16. Qxd8 Rfxd8 {[%emt 0:00:09]} 17. Bh3 {[%emt 0:16:09]} Rxc1 {[%emt 0:00:27]} 18. Rxc1 {[%emt 0:00:05]} Nd5 {[%emt 0:07:10] Dodges Rc7} 19. Bc7 {[%emt 0:01:22]} Rf8 {[%emt 0:00:18]} ({But not} 19... Nxc7 $2 20. Rxc7 Rd1+ 21. Bf1 $18 (21. Kg2 Bd5 $18)) 20. Be5 {[%emt 0:02:18]} g6 {[%emt 0:06:58]} 21. e3 {[%emt 0:06:34]} Rd8 {[%emt 0:01:38]} 22. a3 {[%emt 0:01:04]} f6 {[%emt 0:03:15]} 23. Be6+ {[%emt 0:02:28]} Kf8 {[%emt 0:01:15]} 24. Bd4 {[%emt 0:01:19][%cal Of2f3]} Rd6 {[%emt 0:01:53]} 25. Bc8 {[%emt 0:01:17]} Bxc8 {[%emt 0:00:57]} 26. Rxc8+ {[%emt 0:00:06]} Rd8 {[%emt 0:00:02]} 27. Rc2 {[%emt 0:04:48][%cal Of2f3]} Rd7 {[%emt 0:02:25]} 28. Nd2 {[%emt 0:04:41]} f5 {[%emt 0:00:04]} 29. Be5 {[%emt 0:01:40]} Kf7 {[%emt 0:01:31]} 30. Nb3 {[%emt 0:01:04]} Rd8 {[%emt 0:09:39]} 31. Nd4 {[%emt 0:04:55]} a5 {[%emt 0:07:45]} 32. h3 {[%emt 0:03:08]} Bc5 {[%emt 0:00:23]} 33. Nb3 {[%emt 0:05:32]} Ke6 {[%emt 0:00:04]} 34. Bd4 {[%emt 0:00:54]} Bd6 {[%emt 0:01:11]} 35. g4 {[%emt 0:00:47]} a4 {[%emt 0:00:18]} 36. Nd2 {[%emt 0:00:39]} b5 {[%emt 0:00:18]} 37. f3 {[%emt 0:01:16]} exf3 38. Nxf3 {[%emt 0:00:05]} Kd7 {[%emt 0:01:24]} 39. gxf5 {[%emt 0:01:38]} gxf5 {[%emt 0:00:03]} 40. Rg2 {[%emt 0:00:06]} Re8 {[%emt 0:00:09]} 41. Kf2 {[%emt 0:00:29]} f4 {[%emt 0:01:14][%cal Rf4e3]} 42. Rg7+ {[%emt 0:00:24]} Kc6 {[%emt 0:00:03]} 43. exf4 {[%emt 0:00:25]} (43. Rxh7 $2 {too greedy.} fxe3+ (43... Nxe3 44. Rh5 $11) 44. Kf1 Nf4 $19) 43... Nxf4 {[%emt 0:00:04]} 44. Rxh7 {[%emt 0:01:04]} Re2+ {[%emt 0:00:04]} 45. Kf1 {[%emt 0:00:06]} Kd5 {[%emt 0:00:49]} 46. Bc3 {[%emt 0:02:28]} Bc5 {[%emt 0:01:21][%mdl 1024] [#] ...Rf2+ would now be deadly. Black has compensation.} 47. Rd7+ {[%emt 0:00:16] A rather calm draw.   Weighted Error Value: White=0.05 (flawless) /Black=0.05 (flawless) .  Inaccurate:     	White=2     	Black=1      OK:         	White=11    	Black=18     Best:        	White=1     	Black=1} 1/2-1/2

[Event "Arona Festival 2024"]
[Site "Arona Tenerife"]
[Date "2024.06.29"]
[Round "9.1"]
[White "Xue, Haowen"]
[Black "Stremavicius, Titas"]
[Result "1-0"]
[ECO "E05"]
[WhiteElo "2452"]
[BlackElo "2538"]
[Annotator "TA"]
[PlyCount "75"]
[EventDate "2024.06.20"]
[EventType "swiss"]
[EventCountry "ESP"]
[SourceTitle "playchess.com"]
[Source "ChessBase"]
[SourceQuality "1"]
[TimeControl "5400+30"]

{[%evp 14,75,35,37,30,43,39,0,29,16,40,30,21,33,39,33,67,54,72,53,89,97,86,93,99,100,98,93,88,101,88,76,106,107,111,87,120,127,125,115,127,116,122,123,170,160,200,183,202,189,296,251,266,271,272,275,262,251,322,333,323,302,294,294]} 1. c4 {[%emt 0:00:03]} e6 {[%emt 0:00:12]} 2. g3 {[%emt 0:00:16]} Nf6 {[%emt 0:00:17]} 3. Bg2 {[%emt 0:00:07]} d5 {[%emt 0:00:08]} 4. Nf3 {[%emt 0:00:09]} Be7 {[%emt 0:00:08]} 5. O-O {[%emt 0:00:13]} O-O {[%emt 0:00:07]} 6. d4 {[%emt 0:00:33]} dxc4 {[%emt 0:00:08]} 7. Ne5 {[%emt 0:01:47]} c5 {[%emt 0:00:09]} 8. dxc5 {[%emt 0:00:15]} Qc7 {[%emt 0:00:11]} 9. Nxc4 {[%emt 0:00:35]} Rd8 {[%emt 0:00:09]} 10. Qc2 {[%emt 0:03:47]} Qxc5 {[%emt 0:05:16] The position is equal.} 11. Be3 {[%emt 0:03:55]} Qh5 {[%emt 0:00:21]} 12. Rd1 {[%emt 0:00:53]} Rxd1+ {[%emt 0:05:22]} 13. Qxd1 {[%emt 0:00:03]} Nc6 {[%emt 0:00:15]} 14. Nc3 {[%emt 0:18:23]} e5 {[%emt 0:13:33]} 15. Nd5 {[%emt 0:01:07] White is more active.} Nxd5 {[%emt 0:09:51]} 16. Bxd5 {[%emt 0:06:48]} Nb4 {[%emt 0:19:25]} 17. Bf3 {[%emt 0:10:09]} Bg4 {[%emt 0:01:06]} 18. Bxg4 {[%emt 0:06:49]} ({Much weaker is} 18. Bxb7 Rd8 19. Qb3 Bxe2 $14) 18... Qxg4 {[%emt 0:00:04]} 19. Nxe5 {[%emt 0:00:37]} Qe6 {[%emt 0:03:15]} 20. Nd3 {[%emt 0:01:46]} Rd8 {[%emt 0:00:15]} 21. Qa4 {[%emt 0:01:28]} Nxd3 {[%emt 0:00:16]} 22. exd3 {[%emt 0:00:02]} a6 {[%emt 0:00:53][%cal Ob7b5]} 23. Qe4 {[%emt 0:02:09]} Qd7 {[%emt 0:06:30]} 24. Rc1 {[%emt 0:02:05]} Bf6 {[%emt 0:00:38]} 25. Bb6 {[%emt 0:05:42]} Rc8 {[%emt 0:19:05]} 26. Rxc8+ {[%emt 0:00:36]} Qxc8 $16 {[%emt 0:00:03][%mdl 4096] Endgame. KQB-KQB} 27. b4 {[%emt 0:01:53]} Qd7 {[%emt 0:05:25]} 28. d4 {[%emt 0:04:30]} g6 {[%emt 0:00:35]} (28... Qe7 $16 29. Qxe7 Bxe7) 29. d5 {[%emt 0:00:51]} h5 {[%emt 0:00:07]} 30. Kg2 {[%emt 0:02:08]} Kg7 {[%emt 0:00:07]} 31. h4 {[%emt 0:00:34]} Bc3 {[%emt 0:00:35]} (31... Kg8 $142 32. Qd3 Be5) 32. Qc4 {[%emt 0:03:49] White has a decisive advantage.} Be5 {[%emt 0:00:18]} 33. Bd4 {[%emt 0:02:13]} Qf5 {[%emt 0:02:37] [#] And now ...Qe4+ would win.} 34. Bxe5+ {[%emt 0:02:33]} Qxe5 {[%emt 0:00:03]} 35. Qd3 {[%emt 0:00:19] Strongly threatening d6.} Kf8 {[%emt 0:02:14]} 36. d6 {[%emt 0:02:53][%cal Bd5d6,Bd6d7][%mdl 32] White wants to mate with d7.} Ke8 {[%emt 0:00:09]} 37. d7+ {[%emt 0:00:15]} Kd8 {[%emt 0:00:07]} 38. Qf3 $1 {[%emt 0:00:14][%csl LRb7,LRf7] Weighted Error Value: White=0.06 (flawless) /Black=0.16 (very precise) .  Mistake:       	---       	Black=2      Inaccurate:     	White=1     	Black=5      OK:         	White=17    	Black=6      Best:        	White=1     	Black=1} 1-0

[Event "Arona Festival 2024"]
[Site "Arona Tenerife"]
[Date "2024.06.29"]
[Round "9.2"]
[White "Kazakouski, Valery"]
[Black "David, Alberto"]
[Result "1/2-1/2"]
[ECO "B48"]
[WhiteElo "2603"]
[BlackElo "2502"]
[Annotator "TA"]
[PlyCount "129"]
[EventDate "2024.06.20"]
[EventType "swiss"]
[EventCountry "ESP"]
[SourceTitle "playchess.com"]
[Source "ChessBase"]
[SourceQuality "1"]
[TimeControl "5400+30"]

{[%evp 55,129,87,94,102,98,94,89,61,57,0,0,0,0,0,26,25,20,15,23,25,20,-77,9,0,0,0,0,0,4,0,0,0,0,0,0,0,0,0,0,0,13,0,0,0,0,0,0,0,0,0,0,0,0,0,0,0,0,0,0,0,0,0,0,0,0,0,0,0,0,0,0,0,0,0,0,0]} 1. e4 {[%emt 0:01:45]} c5 {[%emt 0:00:38]} 2. Nf3 {[%emt 0:00:08]} e6 {[%emt 0:00:54]} 3. d4 {[%emt 0:00:10]} cxd4 {[%emt 0:00:06]} 4. Nxd4 {[%emt 0:00:07]} Nc6 {[%emt 0:00:33]} 5. Nc3 {[%emt 0:00:10]} Qc7 {[%emt 0:00:50]} 6. Be3 {[%emt 0:00:15]} a6 {[%emt 0:00:49]} 7. Qf3 {[%emt 0:00:26] B48: Sicilian: Taimanov: 5 Nc3 Qc7 6 Be3 a6 without Be2.} Nf6 {[%emt 0:04:18]} 8. O-O-O {[%emt 0:00:55]} Ne5 {[%emt 0:01:17]} 9. Qg3 {[%emt 0:01:03]} b5 {[%emt 0:04:40]} 10. f4 {[%emt 0:01:47]} Neg4 {[%emt 0:02:15]} 11. Bd2 {[%emt 0:01:04]} b4 {[%emt 0:08:15]} 12. Na4 {[%emt 0:00:41]} h5 {[%emt 0:15:50]} 13. Bd3 {[%emt 0:00:42]} Bb7 {[%emt 0:33:47]} 14. h3 {[%emt 0:07:03]} Nh6 {[%emt 0:00:21]} 15. Qe1 {[%emt 0:06:42]} Be7 {[%emt 0:10:00]} 16. Kb1 {[%emt 0:04:01]} Rb8 {[%emt 0:02:55]} 17. Rf1 $146 {[%emt 0:08:50]} ({Predecessor:} 17. Rg1 h4 18. b3 Nh5 19. Qe3 Ng3 20. Ne2 Nxe2 21. Qxe2 a5 22. Be3 Bc6 23. g4 hxg3 24. Rxg3 Bxa4 25. bxa4 {1-0 Galperin,P (2383)-Tugstumur,Y (2295) Novi Sad TS IM 103rd 2019 (7)}) 17... g6 {[%emt 0:02:50]} 18. f5 {[%emt 0:04:18]} gxf5 {[%emt 0:00:43]} 19. Bf4 {[%emt 0:01:25]} e5 {[%emt 0:06:50]} 20. Bxh6 {[%emt 0:01:52]} Rxh6 {[%emt 0:00:20]} 21. Nxf5 {[%emt 0:00:19]} Rg6 {[%emt 0:00:04]} 22. Nxe7 {[%emt 0:02:05]} Kxe7 {[%emt 0:00:04]} 23. Qxb4+ {[%emt 0:00:45]} d6 {[%emt 0:00:03]} 24. Rf5 {[%emt 0:04:07]} Bc8 {[%emt 0:02:17]} 25. Rxe5+ {[%emt 0:00:39]} Kf8 {[%emt 0:00:22]} 26. Qa5 {[%emt 0:03:48]} Qxa5 {[%emt 0:00:04]} 27. Rxa5 {[%emt 0:00:07]} Rxg2 {[%emt 0:00:04]} 28. Bf1 {[%emt 0:05:30]} Rg1 {[%emt 0:01:25]} 29. Nc3 {[%emt 0:00:40]} Rh1 {[%emt 0:00:42]} 30. Kc1 {[%emt 0:03:09]} (30. Bxa6 $6 Rxd1+ 31. Nxd1 Ra8 32. Bxc8 (32. e5 dxe5 33. Bxc8 Rxa5 $17) 32... Rxa5 $11) 30... h4 {[%emt 0:01:03]} 31. Bg2 {[%emt 0:03:12]} (31. Bxa6 $6 Rxd1+ 32. Nxd1 Ra8 33. Bxc8 (33. e5 $2 dxe5 34. Bxc8 Rxa5 $19) 33... Rxa5 $11) 31... Rh2 {[%emt 0:00:03]} 32. Rxd6 {[%emt 0:06:57]} (32. Rg1 $14) 32... Rxg2 $11 {[%emt 0:00:06]} 33. Rxf6 {[%emt 0:00:06]} Rg1+ {[%emt 0:00:10]} 34. Kd2 {[%emt 0:02:14]} Rxb2 {[%emt 0:00:05]} 35. Ne2 {[%emt 0:02:35]} Rg2 {[%emt 0:01:53]} 36. Rh6 {[%emt 0:00:55]} Bxh3 {[%emt 0:00:42]} 37. Rxh4 {[%emt 0:00:30]} (37. Rhxa6 $2 {perishes.} Rb1 38. Rh6 Bg4 39. Rh8+ Kg7 40. Rxh4 Bxe2 $19 (40... Rxe2+ $2 41. Kc3 $19)) 37... Be6 {[%emt 0:00:31]} 38. a3 {[%emt 0:09:05] [#]} (38. Rxa6 $2 Rxe2+ (38... Bxa2 39. Ra8+ Kg7 40. Kd3 $14) 39. Kxe2 Bc4+ (39... Rxc2+ 40. Kd3 $11) 40. Kd2 Bxa6 $19) (38. Kd3 $11) 38... Bb3 {[%emt 0:00:29]} (38... Rb1 $1 $17 {aiming for ...Bc4.} 39. e5 (39. Rxa6 $2 Bc4 $19) 39... Bg4 40. Rxg4 Rxg4 41. Rxa6 Rf1) 39. Kc3 $11 {[%emt 0:02:31]} (39. Rxa6 $2 {loses.} Rxc2+ 40. Ke3 Rcxe2+ $19 (40... Rgxe2+ $2 41. Kd4 $19)) 39... Rxc2+ {[%emt 0:00:04]} 40. Kxb3 {[%emt 0:00:07]} Rgxe2 {[%emt 0:01:14]} 41. Rxa6 {[%emt 0:00:31]} Rc7 {[%emt 0:00:15]} 42. Ra8+ {[%emt 0:01:04]} Ke7 {[%emt 0:00:44]} 43. Ra5 {[%emt 0:00:55]} Re1 {[%emt 0:00:38]} 44. Re5+ {[%emt 0:01:27]} Kf6 {[%emt 0:00:11]} 45. Rf5+ {[%emt 0:00:12]} Kg7 {[%emt 0:00:04]} 46. Rg5+ {[%emt 0:01:02]} Kf6 {[%emt 0:00:51]} 47. Rf5+ {[%emt 0:00:35]} Kg7 {[%emt 0:00:03]} 48. Rf3 {[%emt 0:00:11]} Rb7+ {[%emt 0:00:31]} 49. Kc3 {[%emt 0:01:18]} Ra7 {[%emt 0:01:14]} 50. Kd4 {[%emt 0:01:05]} Ra1 {[%emt 0:00:38]} 51. Rhh3 {[%emt 0:00:34]} Ra4+ {[%emt 0:00:26]} 52. Ke5 {[%emt 0:00:03]} Ra5+ {[%emt 0:00:38]} 53. Kf4 {[%emt 0:00:07]} Kf6 {[%emt 0:00:34]} 54. Rb3 {[%emt 0:02:19]} Ra4 {[%emt 0:00:27]} 55. Rb6+ {[%emt 0:01:03]} Kg7 {[%emt 0:00:22]} 56. Rg3+ {[%emt 0:00:35]} Kf8 {[%emt 0:00:02]} 57. Rbb3 {[%emt 0:01:27]} Re1 {[%emt 0:00:30]} 58. Rge3 {[%emt 0:01:10]} Rh1 {[%emt 0:00:13]} 59. Ke5 {[%emt 0:01:06]} Rh5+ {[%emt 0:00:57]} 60. Kd6 {[%emt 0:01:31]} Ra6+ {[%emt 0:00:09]} 61. Kd7 {[%emt 0:00:30]} Ra7+ {[%emt 0:00:18]} 62. Kc6 {[%emt 0:01:39]} Ra6+ {[%emt 0:00:02]} 63. Kb7 {[%emt 0:01:44]} Rha5 {[%emt 0:00:10]} 64. Rg3 {[%emt 0:01:10]} Ra7+ {[%emt 0:00:46]} 65. Kc6 {[%emt 0:01:11]} 1/2-1/2